{"text_format":"1","workbook":"xlsx","n_sheets":1,"sheets":["ОБЩИЙ СВОД"],"not_rendered":{"charts":0,"images":0,"macros":1,"external_links":0,"defined_names":0,"comments":0,"pivot_tables":0},"unopened":[],"bounds":{"document_bytes":16777216,"sheet_cells":100000,"rows_first":2000,"rows_last":500,"rows_between":2000,"halvings":0,"cell_chars":16384,"cell_head_chars":4096},"cells_cut":0,"cells_raw":0,"read":"whole","date_system":"1900"}

{"sheet":"ОБЩИЙ СВОД","index":0,"n_rows":38,"n_cols":18,"rows_kept":38,"cut":false,"hidden":false,"merged":[[15,2,15,17],[10,2,10,17],[12,2,12,17],[32,2,32,17]]}
[]
[null,null,null,null,null,null,null,"x","x",null,null,"x",null,"x",null,null,null,"x"]
[null,null,null,null,"x",null,null,null,"x",null,"x","x",null,"x",null,null,"x"]
[null,null,null,null,"x",null,null,null,"x",null,"x","x"]
[]
[null,null,null,null,null,null,null,null,null,null,null,null,null,"x",null,null,"x","x"]
[null,null,null,null,"x","x",null,null,null,null,null,null,null,"x",null,null,"x","x"]
[null,null,null,null,"x","x",null,null,null,null,null,null,null,"x",null,null,"x","x"]
[null,null,null,null,"x","x",null,null,null,null,null,null,null,"x",null,null,"x","x"]
[]
[null,null," АНАЛИЗ ВЫПОЛНЕНИЯ ПЛАНОВЫХ ПОКАЗАТЕЛЕЙ И МЕРОПРИЯТИЯ ДЛЯ ЕГО ИСПОЛНЕНИЯ"]
[null,null,"На:",{"$f":"TODAY()","v":"2020-09-08"}]
[null,null,"ЕВРАЗ ЗСМК (г.Таштагол)"]
[null,null,"№п/п","УС","% СМР                   (НЕДЕЛЯ)","% СМР (МЕСЯЦ)           ","Прогноз СМР (месяц), %","Прогноз СМР (месяц), тыс. руб","Выполненно  СМР (месяц), тыс. руб","План на месяц, тыс.руб.          Всего","Не предоставлено КС-2","Фактически выполнены","Средняя численность","Сумма фактора","Причины не выполнения плана/краткий коментарий к производству работ","Дата внесения информации о причинах","Текущее состояние выполнения работ на объекте","Дата внесения информации о состоянии работ"]
[null,null,"А","Б","1.1","2.1",3,4,5,6,7,8,9,10,11,"12","13","14"]
[null,null,"ГЕНПОДРЯДНАЯ ДЕЯТЕЛЬНОСТЬ"]
[null,null,"1","УС ГДП",{"$f":"AVERAGE(E18:E32)","v":1},{"$f":"I17/J17","v":0.5},{"$f":"H17/J17","v":0.7},{"$f":"SUM(H18:H32)","v":777},555,1110,0,0,0,0]
[null,null,"1.1","ООО Ромашка",1,0.5,0.7,{"$f":"G18*J18","v":777},{"$f":"F18*J18","v":555},1110,null,null,null,null,"Отсутсвие достаточного количества персонала у Подрядчика","2020-09-07","Производятся подготовительные работы на Эстакаде","2020-09-07"]
[null,null,"1.2",null,null,null,null,0,0]
[null,null,"1.3",null,null,null,null,0,0]
[null,null,"1.4",null,null,null,null,0,0]
[null,null,"1.5",null,null,null,null,0,0]
[null,null,"1.6",null,null,null,null,0,0]
[null,null,"1.7",null,null,null,null,0,0]
[null,null,"1.8",null,null,null,null,0,0]
[null,null,"1.9",null,null,null,null,0,0]
[null,null,"1.10",null,null,null,null,0,0]
[null,null,"1.11",null,null,null,null,0,0]
[null,null,"1.12",null,null,null,null,0,0]
[null,null,"1.13",null,null,null,null,0,0]
[null,null,"1.14",null,null,null,null,0,0]
[null,null,"1.15",null,null,null,null,0,0]
[null,null,"УЧАСТКИ"]
[null,null,"1","СРМУ",{"$f":"AVERAGE(E35:E38)","v":0},{"$f":"I34/J34","v":1},{"$f":"H34/J34","v":1},{"$f":"SUM(H35:H38)","v":3979},{"$f":"SUM(I35:I38)","v":3979},{"$f":"SUM(J35:J38)","v":3979},{"$f":"K35+K36+K37+K38","v":0},{"$f":"L35+L36+L37+L38","v":0},{"$f":"SUM(M35:M38)","v":0},{"$f":"SUM(N35:N38)","v":0}]
[null,null,"1.16",null,null,null,null,{"$f":"G35*J35","v":0},{"$f":"F35*J35","v":0}]
[null,null,"1.17","УАР",0,1,1,{"$f":"G36*J36","v":3979},{"$f":"F36*J36","v":3979},3979,0,0,0,null,"В остатках транзиты  (Подписаны Акты на Мусоропровод, Уборку строительного мусора, Леса), все ЛСР в работе у Заказчика.  Необходимо заключить ДС для процентования - на согласовании у Заказчика до 11.09.2020",null,"Работы не ведутся, плановое начало работ - Октябрь 2020г."]
[null,null,"1.18",null,0,null,null,{"$f":"G37*J37","v":0},{"$f":"F37*J37","v":0}]
[null,null,"1.19",null,0,null,null,{"$f":"G38*J38","v":0},{"$f":"F38*J38","v":0}]